Workbook

Sheet Закуп
C1: =SUBTOTAL(9,C3:C8620) -> 1577 | E1: =SUBTOTAL(9,E3:E8620) -> 266924.44
A2: Дата | B2: Наименование товара | C2: Кол-во | D2: Цена шт. | E2: Сумма | F2: Скла1 | G2: Склад2
A3: 2023-10-12 | B3: Товар 1 | C3: 300 | D3: 146.98 | E3: =C3*D3 -> 44094 | F3: 140 | G3: 160
A4: 2023-10-12 | B4: Товар 2 | C4: 100 | D4: 121.98 | E4: 12198 | F4: 80 | G4: 20
A5: 2023-10-12 | B5: Товар 3 | C5: 64 | D5: 196.98 | E5: 12606.72 | F5: 60 | G5: 4
A6: 2023-10-23 | B6: Товар 1 | C6: 600 | D6: 146.64 | E6: 87984 | F6: 290 | G6: 310
A7: 2023-10-23 | B7: Товар 4 | C7: 130 | D7: 261.64 | E7: 34013.2 | F7: 30 | G7: 100
A8: 2023-11-22 | B8: Товар 1 | C8: 3 | D8: 144.64 | E8: 433.92 | F8: 1 | G8: 2
A9: 2023-11-23 | B9: Товар 4 | C9: 130 | D9: 259.22 | E9: 33698.6 | F9: 60 | G9: 70
A10: 2023-12-12 | B10: Товар 2 | C10: 50 | D10: 130 | E10: =C10*D10 -> 6500 | F10: 20 | G10: 30
A11: 2023-10-12 | B11: Товар 3 | C11: 200 | D11: 176.98 | E11: 35396 | F11: 120 | G11: 80

Sheet Продажа
C1: =SUBTOTAL(9,C3:C8727) -> 290 | E1: =SUBTOTAL(9,E3:E8727) -> 56405
A2: Дата | B2: Наименование товара | C2: Колво | D2: Цена шт. | E2: Итоговая сумма | F2: Скла1 | G2: Склад2
A3: 2023-10-27 | B3: Товар 1 | C3: 50 | D3: 165 | E3: =C3*D3 -> 8250 | F3: 20 | G3: 30
A4: 2023-11-05 | B4: Товар 3 | C4: 10 | D4: 240 | E4: =C4*D4 -> 2400 | F4: 10
A5: 2023-11-09 | B5: Товар 1 | C5: 100 | D5: 165 | E5: 16500 | F5: 20 | G5: 80
A6: 2023-11-11 | B6: Товар 2 | C6: 50 | D6: 135 | E6: 6750 | F6: 30 | G6: 20
A7: 2023-11-12 | B7: Товар 4 | C7: 77 | D7: 280 | E7: 21560 | F7: 37 | G7: 40
A8: 2023-11-22 | B8: Товар 4 | C8: 1 | D8: 375 | E8: 375 | F8: 1
A9: 2023-11-25 | B9: Товар 3 | C9: 2 | D9: 285 | E9: 570 | G9: 2

Sheet Продажа услуг
A1: Дата приемки | B1: Наименование товара | C1: Кол-во | D1: Цена шт. | E1: Сумма работы | F1: Скла1 | G1: Склад2
A2: 2024-03-22 | B2: Товар 1 | C2: 6 | D2: 333.3334 | E2: =C2*D2 -> 2000.0004 | G2: 6
A3: 2024-03-22 | B3: Товар 2 | C3: 2 | D3: 456 | E3: =C3*D3 -> 912 | F3: 2
A4: 2024-03-22 | B4: Товар 3 | C4: 2 | D4: 580 | E4: 1160 | G4: 2
A5: 2024-03-22 | B5: Товар 4 | C5: 2 | D5: 326 | E5: 652 | G5: 2

Sheet Остаток
C1: =SUBTOTAL(9,C3:C8701) -> 1275 | D1: =SUBTOTAL(9,D3:D8701) -> 681 | E1: 594
A2: Наименование | B2: Всего продано | C2: Остаток, шт | D2: Скла1 | E2: Склад2 | F2: Сред.цена шт, руб
A3: Товар 1 | B3: =SUMIF(Продажа!B:B,Остаток!A3,Продажа!C:C)+SUMIF('Продажа услуг'!B:B,Остаток!A3,'Продажа услуг'!C:C) -> 156 | C3: =SUMIF(Закуп!B:B,Остаток!A3,Закуп!C:C)-B3 -> 747 | D3: =SUMIF(Закуп!B:B,Остаток!A3,Закуп!F:F)-SUMIF(Продажа!B:B,Остаток!A3,Продажа!F:F)-SUMIF('Продажа услуг'!B:B,Остаток!A3,'Продажа услуг'!F:F) -> 391 | E3: =SUMIF(Закуп!B:B,Остаток!A3,Закуп!G:G)-SUMIF(Продажа!B:B,Остаток!A3,Продажа!G:G)-SUMIF('Продажа услуг'!B:B,Остаток!A3,'Продажа услуг'!G:G) -> 356
A4: Товар 2 | B4: =SUMIF(Продажа!B:B,Остаток!A4,Продажа!C:C)+SUMIF('Продажа услуг'!B:B,Остаток!A4,'Продажа услуг'!C:C) -> 52 | C4: =SUMIF(Закуп!B:B,Остаток!A4,Закуп!C:C)-B4 -> 98 | D4: =SUMIF(Закуп!B:B,Остаток!A4,Закуп!F:F)-SUMIF(Продажа!B:B,Остаток!A4,Продажа!F:F)-SUMIF('Продажа услуг'!B:B,Остаток!A4,'Продажа услуг'!F:F) -> 68 | E4: =SUMIF(Закуп!B:B,Остаток!A4,Закуп!G:G)-SUMIF(Продажа!B:B,Остаток!A4,Продажа!G:G)-SUMIF('Продажа услуг'!B:B,Остаток!A4,'Продажа услуг'!G:G) -> 30
A5: Товар 3 | B5: =SUMIF(Продажа!B:B,Остаток!A5,Продажа!C:C)+SUMIF('Продажа услуг'!B:B,Остаток!A5,'Продажа услуг'!C:C) -> 14 | C5: =SUMIF(Закуп!B:B,Остаток!A5,Закуп!C:C)-B5 -> 250 | D5: =SUMIF(Закуп!B:B,Остаток!A5,Закуп!F:F)-SUMIF(Продажа!B:B,Остаток!A5,Продажа!F:F)-SUMIF('Продажа услуг'!B:B,Остаток!A5,'Продажа услуг'!F:F) -> 170 | E5: =SUMIF(Закуп!B:B,Остаток!A5,Закуп!G:G)-SUMIF(Продажа!B:B,Остаток!A5,Продажа!G:G)-SUMIF('Продажа услуг'!B:B,Остаток!A5,'Продажа услуг'!G:G) -> 80
A6: Товар 4 | B6: =SUMIF(Продажа!B:B,Остаток!A6,Продажа!C:C)+SUMIF('Продажа услуг'!B:B,Остаток!A6,'Продажа услуг'!C:C) -> 80 | C6: =SUMIF(Закуп!B:B,Остаток!A6,Закуп!C:C)-B6 -> 180 | D6: =SUMIF(Закуп!B:B,Остаток!A6,Закуп!F:F)-SUMIF(Продажа!B:B,Остаток!A6,Продажа!F:F)-SUMIF('Продажа услуг'!B:B,Остаток!A6,'Продажа услуг'!F:F) -> 52 | E6: =SUMIF(Закуп!B:B,Остаток!A6,Закуп!G:G)-SUMIF(Продажа!B:B,Остаток!A6,Продажа!G:G)-SUMIF('Продажа услуг'!B:B,Остаток!A6,'Продажа услуг'!G:G) -> 128
